fUSD/lending_fUSD_20240708
["ID","MTS","AMOUNT","RATE_DAILY","PERIOD"]
[331531652,1720451433048,-500.0,0.00013381,2]
[331531653,1720451433057,-500.0,0.0001339,2]
[331531654,1720451433067,-371.06658261,0.00013398,2]
[331531655,1720451433098,-128.93341739,0.00013398,2]
[331531656,1720451433107,-300.0,0.00013404,2]
[331531657,1720451433116,-112.07580251,0.00013404,2]
[331531658,1720451433128,-187.92419749,0.00013404,2]
[331531659,1720451433138,-500.0,0.00013407,2]
[331531660,1720451433147,-169.32580251,0.00013407,2]
[331531661,1720451433159,-330.66419749,0.00013407,2]
[331531662,1720451433168,-500.0,0.00013416,2]
[331531663,1720451433178,-500.0,0.00013425,2]
[331531664,1720451433187,-500.0,0.00013434,2]
[331531665,1720451433196,-500.0,0.00013442,2]
[331531666,1720451433206,-500.0,0.00013451,2]
[331531667,1720451433223,-500.0,0.0001346,2]
[331531668,1720451433233,-150.0,0.0001346,2]
[331531669,1720451433245,-500.0,0.00013469,2]
[331531670,1720451433254,-465.08279601,0.00013849,2]
[331531671,1720451433264,-176.22964096,0.00013849,2]
[331531672,1720451433273,-338.95730308,0.00013849,2]
[331531673,1720451433283,-176.22964096,0.00013849,2]
[331531674,1720451433292,-155.0,0.00013889,2]
[331531675,1720451433301,-155.3679551,0.00013899,2]
[331531676,1720451433311,-155.0,0.00013899,2]
[331531677,1720451433320,-155.3679551,0.00013899,2]
[331531678,1720451433329,-155.0,0.00013899,2]
[331531679,1720451433338,-150.0,0.00014577,2]
[331531680,1720451433348,-420.0,0.00014694,2]
[331531681,1720451433357,-156.84,0.00014989,2]
[331531682,1720451433367,-3971.3553682,0.00015,2]
[331531683,1720451433377,-623.37993751,0.00015,2]
[331531684,1720451433386,-155.0,0.00015,2]
[331531685,1720451433395,-327.50694654,0.00015,2]
[331531686,1720451433405,-600.0,0.00015287,2]
[331531687,1720451433414,-267.2,0.00015621,5]
[331531688,1720451433423,-2308.49,0.00015639,2]
[331531689,1720451433433,-150.0,0.00015772,2]
[331531690,1720451433442,-500.0,0.00015885,2]
[331531691,1720451433451,-2086.77,0.00016019,2]
[331531693,1720451433464,-587.0,0.00016107,2]
[331531694,1720451433473,-758.97,0.00016179,2]
[331531695,1720451433483,-250.0,0.00016179,2]
[331531696,1720451433493,-155.0,0.00016279,2]
[331531697,1720451433502,-589.19612045,0.00016279,2]
[331531698,1720451433512,-409.09876858,0.00016279,2]
[331531699,1720451433522,-400.0,0.00016373,2]
[331531700,1720451433531,-842.78,0.00016436,2]
[331531701,1720451433542,-1760.75916821,0.000165,2]
[331531702,1720451433551,-250.0,0.00016649,2]
[331531703,1720451433561,-156.28,0.00016678,2]
[331531705,1720451433570,-52.34606331,0.00016753,3]
[331531707,1720451433582,-167.53393669,0.00016753,3]
[331531708,1720451433591,-2690.44723316,0.00016753,2]
[331531710,1720451433602,-684.71908266,0.00016753,2]
[331531711,1720451433614,-865.46028817,0.00016753,2]
[331531712,1720451433625,-6581.03339601,0.00016753,2]
[331531713,1720451433636,-156.28,0.00016852,2]
[331531714,1720451433648,-542.31,0.00016913,2]
[331531715,1720451433658,-551.38,0.00016958,2]
[331531716,1720451433667,-1000.0,0.00017199,2]
[331531717,1720451433677,-169.26120395,0.00017261,2]
[331531718,1720451433688,-130.73879605,0.00017261,2]
[331531719,1720451433698,-823.0,0.00017657,2]
[331531720,1720451433708,-38.3786784,0.00017677,2]
[331531721,1720451433738,-118.4613216,0.00017677,2]
[331531722,1720451433748,-167.0,0.00017792,2]
[331531723,1720451433757,-5178.0,0.0001787,2]
[331531724,1720451433766,-27054.84987361,0.0001787,2]
[331531725,1720451433777,-11195.15012639,0.0001787,2]
[331531726,1720451433787,-173.37,0.00017914,2]
[331531727,1720451433796,-281.09911487,0.0001799,2]
[331531728,1720451433806,-227.24934482,0.00017999,2]
[331531729,1720451433816,-189.02115767,0.00018,2]
[331531730,1720451433825,-167.0,0.0001838,2]
[331531731,1720451433835,-400.0,0.0001842,2]
[331531732,1720451433844,-300.0,0.00018631,2]
[331531733,1720451433854,-167.0,0.00018967,2]
[331531734,1720451433863,-5000.0,0.00019,2]
[331531735,1720451433872,-155.0,0.00019,2]
[331531736,1720451433882,-155.0,0.00019069,2]
[331531737,1720451433891,-500.0,0.000192,7]
[331531738,1720451433900,-1000.0,0.00019349,2]
[331531739,1720451433910,-533.90157478,0.0001935,2]
[331531740,1720451433920,-1152.0,0.00019356,2]
[331531741,1720451433929,-167.0,0.00019554,2]
[331531742,1720451433939,-430.00947767,0.00019565,2]
[331531743,1720451433949,-17397.9532437,0.000196,2]
[331531744,1720451433962,-669.94125223,0.000196,2]
[331531745,1720451433973,-1747.15468688,0.000196,2]
[331531746,1720451433985,-0.55693642,0.000196,2]
[331531747,1720451433995,-300.0,0.00019725,2]
[331531748,1720451434004,-202.35029253,0.00019725,2]
[331531749,1720451434015,-97.64970747,0.00019725,2]
[331531750,1720451434024,-207.06688505,0.00019725,2]
[331531751,1720451434035,-281.36,0.00019725,2]
[331531752,1720451434046,-15.67083407,0.00019725,2]
[331531753,1720451434055,-551.46916593,0.000199,2]
[331531754,1720451434067,-2997.5,0.000199,2]
[331531773,1720451437669,-319.8,0.00013128,2]
[331531774,1720451437682,-1080.54614592,0.00013128,2]
[331531775,1720451437692,-12.85370093,0.00013759,2]
[331531776,1720451437705,-546.74994016,0.00013759,2]
[331531777,1720451437718,-4608.89,0.00017825,2]
[331531778,1720451437730,-227.24934482,0.00017925,2]
[331531779,1720451437739,-370.90972778,0.00018919,2]
[331531780,1720451437748,-200.61725219,0.00019229,2]
[331531781,1720451437758,-2751.72393407,0.000199,2]
[331531782,1720451437768,-155.0,0.00019964,2]
[331531783,1720451437778,-202.51101896,0.00019964,2]
[331531784,1720451437787,-292.47425253,0.0001999,2]
[331531785,1720451437797,-1277.40403744,0.0002,2]
[331531786,1720451437807,-1666.88428469,0.0002,2]
[331531787,1720451437818,-2268.42359773,0.0002,7]
[331531788,1720451437828,-1795.99832638,0.0002,2]
[331531789,1720451437841,-1379.11993203,0.0002,2]
[331531790,1720451437852,-339.81835002,0.0002,7]
[331531791,1720451437862,-366.10477922,0.0002,2]
[331531792,1720451437873,-155.0,0.0002,2]
[331531793,1720451437883,-361.52807271,0.0002,2]
[331531794,1720451437893,-448.43744001,0.0002,2]
[331531795,1720451437902,-550.93345898,0.0002,2]
[331531796,1720451437912,-292.2981746,0.0002,2]
[331531797,1720451437922,-712.81239937,0.0002,2]
[331531798,1720451437934,-11348.68017117,0.0002,2]
[331531799,1720451437944,-1000.82494235,0.0002,2]
[331531800,1720451437955,-616.63744864,0.0002,2]
[331531801,1720451437969,-1250.0,0.0002,2]
[331531802,1720451437980,-3207.818898,0.0002,2]
[331531803,1720451437991,-167.0,0.00020142,2]
[331531804,1720451438001,-3877.93443422,0.000202,2]
[331531805,1720451438012,-156.84,0.00020366,2]
[331531806,1720451438023,-400.0,0.00020466,2]
[331531807,1720451438034,-167.0,0.00020729,2]
[331531808,1720451438044,-335.61916994,0.0002085,2]
[331531809,1720451438055,-737.4352,0.0002086,2]
[331531810,1720451438067,-789.62154355,0.0002086,2]
[331531811,1720451438081,-2473.81855127,0.0002086,2]
[331531812,1720451438093,-1520.39891193,0.0002086,2]
[331531813,1720451438106,-468.50164004,0.0002086,2]
[331531816,1720451438119,-4093.73668848,0.0002086,2]
[331531817,1720451438132,-10978.45424228,0.0002086,2]
[331531818,1720451438156,-369.90456315,0.0002086,2]
[331531819,1720451438168,-12133.84786113,0.0002086,2]
[331531820,1720451438187,-1286.51473513,0.0002086,2]
[331531821,1720451438199,-994.53623725,0.0002086,2]
[331531826,1720451439682,-416.86901348,0.0002086,2]
[331531828,1720451439840,-194626.31001231,0.0002086,2]
[331531829,1720451439850,-901.4127155,0.0002095,2]
[331531830,1720451439860,-901.4127155,0.0002095,2]
[331531831,1720451439870,-901.4127155,0.0002095,2]
[331531832,1720451439880,-901.4127155,0.0002095,2]
[331531833,1720451439891,-901.4127155,0.0002095,2]
[331531834,1720451439900,-901.4127155,0.0002095,2]
[331531835,1720451439910,-901.4127155,0.0002095,2]
[331531836,1720451439921,-901.4127155,0.0002095,2]
[331531837,1720451439931,-901.4127155,0.0002095,2]
[331531838,1720451439942,-901.4127155,0.0002095,2]
[331531839,1720451439952,-901.4127155,0.0002095,2]
[331531840,1720451439962,-893.79989031,0.00021,2]
[331531841,1720451439975,-432.68825395,0.00021,2]
[331531842,1720451439985,-1376.52133367,0.00021012,2]
[331531843,1720451439995,-50000.0,0.0002107,2]
[331531844,1720451440006,-500000.0,0.00021088,2]
[331531845,1720451440016,-267.92913545,0.00021097,2]
[331531846,1720451440026,-1613.0,0.00021219,2]
[331531847,1720451440036,-180.0,0.00021397,2]
[331531848,1720451440046,-220.76056736,0.00021409,2]
[331531849,1720451440056,-258131.88758,0.0002141,2]
[331531850,1720451440066,-54210.2565254,0.0002141,2]
[331531851,1720451440076,-1000.0,0.00021499,2]
[331531852,1720451440086,-202817.91167,0.00021735,2]
[331531853,1720451440097,-105032.372018,0.00021735,2]
[331531854,1720451440107,-150.0,0.00021918,2]
[331531855,1720451440117,-1488.27565616,0.00022,2]
[331531856,1720451440128,-1300.0,0.00022,2]
[331531858,1720451440138,-150.0,0.00022495,2]
[331531860,1720451440148,-400.0,0.00022513,2]
[331531862,1720451440159,-150.0,0.00023071,2]
[331531864,1720451440168,-2258.0,0.0002326,2]
[331531866,1720451440178,-3699.30134325,0.0002354,2]
[331531868,1720451440188,-150.0,0.00023648,2]
[331531869,1720451440198,-1000.0,0.00023649,2]
[331531871,1720451440208,-542.31,0.00023679,2]
[331531873,1720451440221,-1350.0,0.00024,2]
[331531874,1720451440231,-150.0,0.00024225,2]
[331531875,1720451440241,-400.0,0.0002456,2]
[331531876,1720451440251,-1000.0,0.00024562,2]
[331531877,1720451440261,-150.0,0.00024802,2]
[331531878,1720451440270,-545.3132,0.000249,2]
[331531879,1720451440279,-500.0,0.00024932,15]
[331531880,1720451440289,-500.0,0.00024932,15]
[331531881,1720451440299,-500.0,0.00024932,15]
[331531882,1720451440309,-500.0,0.00024932,2]
[331531883,1720451440320,-626.87778826,0.00025,2]
[331531884,1720451440329,-1789.10490314,0.00025,2]
[331531885,1720451440339,-3808.24904344,0.00025,2]
[331531886,1720451440349,-155.0,0.00025,2]
[331531887,1720451440358,-433.01842109,0.00025,2]
[331531888,1720451440368,-155.0,0.00025,2]
[331531889,1720451440378,-150.0,0.00025,2]
[331531890,1720451440387,-169.93311326,0.00025,2]
[331531891,1720451440397,-300.5448887,0.00025,2]
[331531892,1720451440407,-155.0,0.00025,2]
[331531893,1720451440417,-155.0,0.00025,2]
[331531894,1720451440427,-24661.40796821,0.00025,2]
[331531895,1720451440789,-500.0,0.00025,2]
[331531896,1720451440828,-500.0,0.00025,2]
[331531897,1720451440839,-500.0,0.00025,2]
[331531898,1720451440848,-500.0,0.00025,2]
[331531899,1720451440858,-500.0,0.00025,2]
[331531900,1720451440867,-500.0,0.00025,2]
[331531901,1720451440877,-500.0,0.00025,2]
[331531902,1720451440890,-500.0,0.00025,2]
[331531903,1720451440900,-500.0,0.00025,2]
[331531904,1720451440909,-500.0,0.00025,2]
[331531905,1720451440919,-500.0,0.00025,2]
[331531906,1720451440928,-500.0,0.00025,2]
[331531907,1720451440937,-500.0,0.00025,2]
[331531908,1720451440947,-500.0,0.00025,2]
[331531909,1720451440957,-500.0,0.00025,2]
[331531910,1720451440967,-500.0,0.00025,2]
[331531911,1720451440977,-500.0,0.00025,2]
[331531912,1720451440987,-500.0,0.00025,2]
[331531913,1720451440996,-500.0,0.00025,2]
[331531914,1720451441006,-500.0,0.00025,2]
[331531915,1720451441015,-500.0,0.00025,2]
[331531916,1720451441025,-500.0,0.00025,2]
[331531917,1720451441035,-500.0,0.00025,2]
[331531918,1720451441045,-500.0,0.00025,2]
[331531919,1720451441055,-500.0,0.00025,2]
[331531920,1720451441064,-500.0,0.00025,2]
[331531921,1720451441073,-500.0,0.00025,2]
[331531922,1720451441083,-500.0,0.00025,2]
[331531923,1720451441092,-500.0,0.00025,2]
[331531924,1720451441102,-500.0,0.00025,2]
[331531925,1720451441112,-500.0,0.00025,2]
[331531926,1720451441121,-500.0,0.00025,2]
[331531927,1720451441131,-500.0,0.00025,2]
[331531928,1720451441141,-500.0,0.00025,2]
[331531929,1720451441150,-500.0,0.00025,2]
[331531930,1720451441159,-500.0,0.00025,2]
[331531931,1720451441169,-500.0,0.00025,2]
[331531932,1720451441178,-500.0,0.00025,2]
[331531933,1720451441188,-500.0,0.00025,2]
[331531934,1720451441198,-500.0,0.00025,2]
[331531935,1720451441208,-500.0,0.00025,2]
[331531936,1720451441220,-500.0,0.00025,2]
[331531937,1720451441229,-500.0,0.00025,2]
[331531939,1720451441238,-500.0,0.00025,2]
[331531941,1720451441247,-500.0,0.00025,2]
[331531942,1720451441256,-500.0,0.00025,2]
[331531943,1720451441265,-500.0,0.00025,2]
[331531944,1720451441274,-500.0,0.00025,2]
[331531945,1720451441283,-500.0,0.00025,2]
[331531946,1720451441293,-500.0,0.00025,2]
[331531947,1720451441302,-500.0,0.00025,2]
[331531948,1720451441312,-500.0,0.00025,2]
[331531949,1720451441321,-500.0,0.00025,2]
[331531950,1720451441330,-500.0,0.00025,2]
[331531951,1720451441339,-500.0,0.00025,2]
[331531952,1720451441349,-500.0,0.00025,2]
[331531953,1720451441359,-500.0,0.00025,2]
[331531954,1720451441368,-500.0,0.00025,2]
[331531955,1720451441377,-500.0,0.00025,2]
[331531956,1720451441386,-500.0,0.00025,2]
[331531957,1720451441396,-500.0,0.00025,2]
[331531958,1720451441405,-500.0,0.00025,2]
[331531959,1720451441414,-500.0,0.00025,2]
[331531960,1720451441423,-500.0,0.00025,2]
[331531961,1720451441433,-500.0,0.00025,2]
[331531962,1720451441442,-500.0,0.00025,2]
[331531963,1720451441452,-500.0,0.00025,2]
[331531964,1720451441461,-500.0,0.00025,2]
[331531965,1720451441476,-500.0,0.00025,2]
[331531966,1720451441485,-500.0,0.00025,2]
[331531967,1720451441494,-500.0,0.00025,2]
[331531968,1720451441503,-500.0,0.00025,2]
[331531969,1720451441512,-500.0,0.00025,2]
[331531970,1720451441521,-500.0,0.00025,2]
[331531971,1720451441530,-500.0,0.00025,2]
[331531972,1720451441539,-500.0,0.00025,2]
[331531973,1720451441548,-500.0,0.00025,2]
[331531974,1720451441558,-500.0,0.00025,2]
[331531975,1720451441567,-500.0,0.00025,2]
[331531976,1720451441577,-500.0,0.00025,2]
[331531977,1720451441586,-500.0,0.00025,2]
[331531978,1720451441595,-500.0,0.00025,2]
[331531979,1720451441604,-500.0,0.00025,2]
[331531980,1720451441614,-500.0,0.00025,2]
[331531981,1720451441623,-500.0,0.00025,2]
[331531982,1720451441634,-500.0,0.00025,2]
[331531983,1720451441646,-500.0,0.00025,2]
[331531984,1720451441656,-500.0,0.00025,2]
[331531985,1720451441665,-500.0,0.00025,2]
[331531986,1720451441675,-500.0,0.00025,2]
[331531987,1720451441685,-500.0,0.00025,2]
[331531988,1720451441695,-500.0,0.00025,2]
[331531989,1720451441705,-500.0,0.00025,2]
[331531990,1720451441714,-500.0,0.00025,2]
[331531991,1720451441733,-500.0,0.00025,2]
[331531992,1720451441742,-500.0,0.00025,2]
[331531993,1720451441751,-500.0,0.00025,2]
[331531994,1720451441761,-500.0,0.00025,2]
[331531995,1720451441770,-500.0,0.00025,2]
[331531996,1720451441780,-500.0,0.00025,2]
[331531997,1720451441789,-500.0,0.00025,2]
[331531998,1720451441798,-500.0,0.00025,2]
[331531999,1720451441807,-500.0,0.00025,2]
[331532000,1720451441817,-500.0,0.00025,2]
[331532001,1720451441827,-500.0,0.00025,2]
[331532002,1720451441837,-500.0,0.00025,2]
[331532003,1720451441846,-500.0,0.00025,2]
[331532004,1720451441856,-500.0,0.00025,2]
[331532005,1720451441865,-500.0,0.00025,2]
[331532006,1720451441875,-500.0,0.00025,2]
[331532007,1720451441884,-500.0,0.00025,2]
[331532008,1720451441894,-500.0,0.00025,2]
[331532009,1720451441903,-500.0,0.00025,2]
[331532010,1720451441913,-500.0,0.00025,2]
[331532011,1720451441923,-500.0,0.00025,2]
[331532012,1720451441932,-500.0,0.00025,2]
[331532013,1720451441942,-500.0,0.00025,2]
[331532014,1720451441952,-500.0,0.00025,2]
[331532015,1720451441961,-500.0,0.00025,2]
[331532016,1720451441974,-500.0,0.00025,2]
[331532017,1720451441983,-500.0,0.00025,2]
[331532018,1720451441992,-500.0,0.00025,2]
[331532019,1720451442002,-500.0,0.00025,2]
[331532020,1720451442011,-500.0,0.00025,2]
[331532021,1720451442020,-500.0,0.00025,2]
[331532022,1720451442030,-500.0,0.00025,2]
[331532023,1720451442040,-500.0,0.00025,2]
[331532024,1720451442049,-500.0,0.00025,2]
[331532025,1720451442058,-500.0,0.00025,2]
[331532026,1720451442067,-500.0,0.00025,2]
[331532027,1720451442077,-500.0,0.00025,2]
[331532028,1720451442086,-500.0,0.00025,2]
[331532029,1720451442096,-500.0,0.00025,2]
[331532030,1720451442105,-500.0,0.00025,2]
[331532031,1720451442115,-500.0,0.00025,2]
[331532032,1720451442125,-500.0,0.00025,2]
[331532033,1720451442135,-500.0,0.00025,2]
[331532034,1720451442144,-500.0,0.00025,2]
[331532035,1720451442154,-500.0,0.00025,2]
[331532036,1720451442164,-500.0,0.00025,2]
[331532037,1720451442174,-500.0,0.00025,2]
[331532038,1720451442184,-500.0,0.00025,2]
[331532039,1720451442194,-500.0,0.00025,2]
[331532040,1720451442204,-500.0,0.00025,2]
[331532041,1720451442214,-500.0,0.00025,2]
[331532042,1720451442227,-500.0,0.00025,2]
[331532043,1720451442236,-500.0,0.00025,2]
[331532044,1720451442245,-500.0,0.00025,2]
[331532045,1720451442254,-500.0,0.00025,2]
[331532046,1720451442263,-500.0,0.00025,2]
[331532047,1720451442272,-500.0,0.00025,2]
[331532048,1720451442283,-500.0,0.00025,2]
[331532049,1720451442292,-500.0,0.00025,2]
[331532050,1720451442302,-500.0,0.00025,2]
[331532051,1720451442311,-500.0,0.00025,2]
[331532052,1720451442321,-500.0,0.00025,2]
[331532053,1720451442330,-500.0,0.00025,2]
[331532054,1720451442339,-500.0,0.00025,2]
[331532055,1720451442348,-500.0,0.00025,2]
[331532056,1720451442357,-500.0,0.00025,2]
[331532057,1720451442367,-500.0,0.00025,2]
[331532058,1720451442377,-500.0,0.00025,2]
[331532059,1720451442386,-500.0,0.00025,2]
[331532060,1720451442396,-500.0,0.00025,2]
[331532063,1720451442406,-500.0,0.00025,2]
[331532066,1720451442416,-500.0,0.00025,2]
[331532068,1720451442425,-500.0,0.00025,2]
[331532070,1720451442434,-500.0,0.00025,2]
[331532072,1720451442443,-500.0,0.00025,2]
[331532075,1720451442453,-500.0,0.00025,2]
[331532076,1720451442463,-500.0,0.00025,2]
[331532077,1720451442475,-500.0,0.00025,2]
[331532078,1720451442484,-500.0,0.00025,2]
[331532079,1720451442493,-500.0,0.00025,2]
[331532080,1720451442502,-500.0,0.00025,2]
[331532081,1720451442511,-500.0,0.00025,2]
[331532082,1720451442520,-500.0,0.00025,2]
[331532084,1720451442529,-500.0,0.00025,2]
[331532086,1720451442538,-500.0,0.00025,2]
[331532088,1720451442548,-500.0,0.00025,2]
[331532089,1720451442557,-500.0,0.00025,2]
[331532091,1720451442567,-500.0,0.00025,2]
[331532093,1720451442576,-500.0,0.00025,2]
[331532095,1720451442586,-500.0,0.00025,2]
[331532097,1720451442595,-500.0,0.00025,2]
[331532099,1720451442605,-500.0,0.00025,2]
[331532101,1720451442614,-500.0,0.00025,2]
[331532103,1720451442624,-500.0,0.00025,2]
[331532105,1720451442635,-500.0,0.00025,2]
[331532107,1720451442645,-500.0,0.00025,2]
[331532109,1720451442657,-500.0,0.00025,2]
[331532111,1720451442667,-500.0,0.00025,2]
[331532114,1720451442678,-500.0,0.00025,2]
[331532117,1720451442688,-500.0,0.00025,2]
[331532120,1720451442698,-500.0,0.00025,2]
[331532124,1720451442708,-500.0,0.00025,2]
[331532129,1720451442722,-500.0,0.00025,2]
[331532133,1720451442734,-500.0,0.00025,2]
[331532137,1720451442744,-500.0,0.00025,2]
[331532141,1720451442754,-500.0,0.00025,2]
[331532145,1720451442764,-500.0,0.00025,2]
[331532149,1720451442774,-500.0,0.00025,2]
[331532153,1720451442783,-500.0,0.00025,2]
[331532157,1720451442793,-500.0,0.00025,2]
[331532161,1720451442803,-4000.0,0.000251,2]
[331532165,1720451442813,-1000.0,0.00025205,2]
[331532169,1720451442823,-150.0,0.00025379,2]
[331532173,1720451442833,-3162.0,0.00025498,2]
[331532177,1720451442843,-1000.0,0.00025799,2]
[331532181,1720451442853,-160.20995829,0.000259,2]
[331532185,1720451442863,-150.0,0.00025955,2]
[331532189,1720451442872,-1400.0,0.00026,2]
[331532193,1720451442883,-150.0,0.00026079,2]
[331532196,1720451442894,-150.0,0.00026532,2]
[331532199,1720451442903,-6762.15695642,0.00026798,28]
[331532201,1720451442913,-904.0,0.000268,2]
[331532203,1720451442925,-219.84874759,0.00027,2]
[331532205,1720451442934,-2000.0,0.00027,2]
[331532207,1720451442944,-3242.050107,0.0002701,2]
[331532209,1720451442954,-150.0,0.00027109,2]
[331532211,1720451442964,-150.0,0.00027686,2]
[331532213,1720451442977,-4427.0,0.00027952,2]
[331532215,1720451442987,-1450.0,0.00028,2]
[331532217,1720451442997,-150.0,0.00028263,2]
[331532219,1720451443008,-150.0,0.00028839,2]
[331532220,1720451443017,-150.0,0.00029416,2]
[331532221,1720451443027,-267.92913545,0.0002999,2]
[331532222,1720451443036,-150.0,0.00029993,2]
[331532223,1720451443046,-988.98948748,0.0003,4]
[331532224,1720451443055,-1500.0,0.0003,2]
[331532225,1720451443065,-3524.72031883,0.0003,2]
[331532226,1720451443075,-562.67048666,0.0003,2]
[331532227,1720451443085,-404.75063714,0.0003,2]
[331532228,1720451443094,-517.3896,0.00030303,4]
[331532229,1720451443104,-283.33195133,0.00030371,7]
[331532230,1720451443114,-150.71034106,0.00030427,7]
[331532231,1720451443124,-150.0,0.0003057,2]
[331532232,1720451443133,-150.71034106,0.00030617,7]
[331532233,1720451443143,-6198.0,0.00030641,2]
[331532234,1720451443153,-150.71034106,0.00030679,7]
[331532235,1720451443163,-151.0,0.00030749,2]
[331532236,1720451443172,-411.73760477,0.00030763,7]
[331532237,1720451443182,-411.73760477,0.00030951,7]
[331532238,1720451443192,-283.33195133,0.00031065,7]
[331532239,1720451443201,-156.84,0.00031119,2]
[331532240,1720451443211,-150.0,0.00031147,2]
[331532241,1720451443224,-1200.0,0.000315,2]
[331532242,1720451443233,-2500.0,0.000315,2]
[331532243,1720451443243,-650.0,0.000315,2]
[331532244,1720451443252,-153.67497119,0.00031544,7]
[331532245,1720451443261,-796.76486149,0.00031655,7]
[331532246,1720451443270,-150.0,0.00031723,2]
[331532247,1720451443280,-283.33195133,0.00031728,7]
[331532248,1720451443289,-151.29388906,0.00031859,7]
[331532250,1720451443299,-1273.3040719,0.00031864,7]
[331532251,1720451443309,-7500.0,0.000319,2]
[331532252,1720451443319,-283.33195133,0.00031911,7]
[331532253,1720451443329,-1138.38630027,0.00032,120]
[331532254,1720451443339,-1550.0,0.00032,2]
[331532255,1720451443349,-283.33195133,0.00032,7]
[331532256,1720451443363,-411.73760477,0.00032163,7]
[331532257,1720451443372,-150.71034106,0.00032168,7]
[331532258,1720451443381,-150.0,0.000323,2]
[331532259,1720451443391,-171.512574,0.00032388,7]
[331532260,1720451443401,-796.76486149,0.000324,7]
[331532261,1720451443411,-411.73760477,0.00032435,7]
[331532262,1720451443421,-1273.3040719,0.00032583,7]
[331532263,1720451443430,-151.29388906,0.0003265,7]
[331532264,1720451443440,-151.14628755,0.00032747,7]
[331532265,1720451443450,-283.33195133,0.000328,7]
[331532266,1720451443459,-843.53,0.00032876,120]
[331532267,1720451443471,-843.53,0.00032876,120]
[331532268,1720451443480,-843.53,0.00032876,120]
[331532269,1720451443490,-843.53,0.00032876,120]
[331532270,1720451443499,-843.53,0.00032876,120]
[331532271,1720451443509,-843.53,0.00032876,120]
[331532272,1720451443519,-843.53,0.00032876,120]
[331532273,1720451443528,-843.53,0.00032876,120]
[331532274,1720451443538,-843.53,0.00032876,120]
[331532275,1720451443547,-843.53,0.00032876,120]
[331532276,1720451443557,-843.53,0.00032876,120]
[331532277,1720451443567,-843.53,0.00032876,120]
[331532278,1720451443576,-843.53,0.00032876,120]
[331532279,1720451443586,-843.53,0.00032876,120]
[331532280,1720451443596,-843.53,0.00032876,120]
[331532282,1720451443606,-843.53,0.00032876,120]
[331532284,1720451443615,-843.53,0.00032876,120]
[331532286,1720451443625,-843.53,0.00032876,120]
[331532288,1720451443637,-843.53,0.00032876,120]
[331532289,1720451443647,-843.53,0.00032876,120]
[331532290,1720451443657,-843.53,0.00032876,120]
[331532291,1720451443667,-843.53,0.00032876,120]
[331532292,1720451443677,-843.53,0.00032876,120]
[331532293,1720451443687,-843.71874102,0.00032876,120]